bitfinex/quotes_ETHUSD_20240811
["timestamp","ask_amount","ask_price","bid_price","bid_amount"]
[1723384921144,2.4197,2642.7,2642.2,2.64924]
[1723384921475,2.64867,2642.9,2642.2,0.529874]
[1723384921763,2.64867,2642.9,2641.9,5.3533]
[1723384921764,5.06814,2643.1,2642.3,2.64911]
[1723384922074,2.64844,2643.1,2642.5,2.649]
[1723384922242,0.264844,2643.0,2642.5,2.649]
[1723384922753,0.264844,2643.0,2642.5,2.64895]
[1723384922930,2.64844,2643.1,2642.5,2.64895]
[1723384923132,2.64851,2643.0,2642.5,2.64895]
[1723384923356,2.64861,2642.9,2642.4,2.64908]
[1723384923561,2.64861,2642.9,2642.3,2.64916]
[1723384923769,2.64861,2642.9,2642.3,2.64915]
[1723384923938,5.06831,2642.9,2642.3,5.2983]
[1723384924147,5.06831,2642.9,2642.4,2.64909]
[1723384925253,2.4197,2642.9,2642.4,2.64909]
[1723384927251,2.4197,2642.9,2642.4,2.64905]
[1723384927873,2.4197,2642.9,2642.4,5.2981]
[1723384928030,2.4197,2642.9,2642.4,2.64905]
[1723384928878,2.64872,2642.8,2642.2,5.29845]
[1723384929170,5.84003,2642.9,2642.2,2.64922]
[1723384929338,5.06836,2642.9,2642.4,2.6491]
[1723384929874,5.06836,2642.9,2642.2,2.64922]
[1723384930040,5.06836,2642.9,2642.3,2.64914]
[1723384930367,5.575206,2642.9,2642.3,2.64914]
[1723384930572,2.64885,2642.7,2642.1,2.64933]
[1723384931069,5.575236,2642.9,2642.2,2.64925]
[1723384931573,5.575236,2642.9,2642.3,2.6492]
[1723384931773,2.64871,2642.8,2642.3,2.64915]
[1723384932077,2.64871,2642.8,2642.1,2.64931]
[1723384932078,3.4710916,2642.8,2642.1,2.64931]
[1723384932251,2.64881,2642.7,2642.1,2.64937]
[1723384932576,3.50277016,2642.7,2642.1,2.64937]
[1723384932740,2.64901,2642.5,2641.9,2.64953]
[1723384932942,3.50282016,2642.7,2642.1,2.64934]
[1723384933278,3.50282016,2642.7,2642.2,2.6493]
[1723384933443,6.15170016,2642.7,2642.1,2.6494]
[1723384933779,3.50282016,2642.7,2642.1,2.6494]
[1723384933974,3.50282016,2642.7,2642.2,2.64929]
[1723384934180,2.64895,2642.6,2642.0,5.29885]
[1723384934346,2.99923202,2642.6,2642.1,2.64936]
[1723384934700,2.64924,2642.3,2641.8,2.64963]
[1723384935174,2.64932,2642.2,2641.6,5.29968]
[1723384935342,2.64932,2642.2,2641.6,2.64984]
[1723384935538,5.29868,2642.2,2641.6,2.64984]
[1723384935879,2.64932,2642.2,2641.6,2.64984]
[1723384936364,2.4246,2642.1,2641.5,2.64998]
[1723384936677,5.338942,2642.1,2641.4,2.65003]
[1723384936884,5.338942,2642.1,2641.5,2.64998]
[1723384937086,5.338942,2642.1,2641.4,2.65003]
[1723384937087,5.338942,2642.1,2641.6,2.64989]
[1723384937321,2.4246,2642.3,2641.2,8.13968]
[1723384937444,5.07381,2642.3,2641.8,2.64965]
[1723384937644,1.557298,2642.2,2641.8,2.64965]
[1723384937967,1.557298,2642.2,2641.7,2.6498]
[1723384938142,5.07381,2642.3,2641.7,2.6498]
[1723384938544,2.64931,2642.2,2641.5,2.64993]
[1723384938773,2.64931,2642.2,2641.2,2.4894]
[1723384938774,2.64951,2642.0,2641.2,2.4894]
[1723384938957,2.64951,2642.0,2641.5,2.65]
[1723384939586,5.07422,2641.9,2641.3,2.65015]
[1723384940148,5.07422,2641.9,2640.9,2.4894]
[1723384940149,2.4246,2641.9,2641.4,2.65008]
[1723384940351,2.4246,2641.9,2641.5,2.64992]
[1723384940648,2.4246,2641.9,2641.6,2.64984]
[1723384941275,2.4246,2641.9,2641.4,2.65002]
[1723384941669,2.4246,2641.9,2641.4,5.30007]
[1723384942051,2.4246,2641.9,2641.6,2.64989]
[1723384942481,2.4246,2641.9,2641.4,2.65]
[1723384942687,2.4246,2641.9,2641.5,2.64998]
[1723384943048,2.4246,2641.9,2641.4,2.65]
[1723384943251,2.9827401,2641.9,2641.4,2.65]
[1723384944396,2.64978,2641.8,2641.2,2.65023]
[1723384944593,2.64978,2641.8,2640.7,3.257328]
[1723384944594,2.4246,2641.8,2640.7,0.606568]
[1723384944844,2.4246,2641.8,2641.0,2.65042]
[1723384944845,2.64996,2641.6,2641.0,2.65042]
[1723384945096,2.64996,2641.6,2640.8,2.6507]
[1723384945097,2.4246,2641.5,2640.9,2.6506]
[1723384945291,2.65016,2641.4,2640.8,2.65071]
[1723384945446,0.24246,2641.4,2640.9,2.65056]
[1723384945650,2.4246,2641.5,2641.4,2.6501]
[1723384945878,5.64965,2641.9,2641.4,2.6501]
[1723384945879,2.4246,2641.8,2641.4,2.6501]
[1723384946086,2.4246,2641.8,2641.2,2.6503]
[1723384946087,2.4246,2641.8,2641.3,2.6502]
[1723384946349,2.4246,2641.8,2641.4,2.65009]
[1723384946658,2.4246,2641.8,2641.4,2.65005]
[1723384946861,5.07431,2641.8,2641.3,2.6502]
[1723384947285,5.07431,2641.8,2641.2,2.65029]
[1723384947507,5.07431,2641.8,2641.3,2.65016]
[1723384947707,0.507431,2641.7,2641.3,2.65016]
[1723384948216,0.507431,2641.7,2641.1,2.65032]
[1723384948501,2.64991,2641.6,2641.1,2.65032]
[1723384948707,2.64991,2641.6,2640.9,2.65051]
[1723384948891,3.4730751,2641.6,2641.1,2.6504]
[1723384949196,0.8231651,2641.6,2641.1,2.6504]
[1723384949369,2.4246,2641.8,2641.3,5.30036]
[1723384949576,2.4246,2641.8,2641.3,2.65016]
[1723384949993,2.4246,2641.8,2641.4,2.6501]
[1723384950656,5.90211,2642.4,2640.9,5.051]
[1723384950657,7.3,2642.4,2641.5,2.47611858]
[1723384950861,7.3,2642.4,2641.5,2.4004]
[1723384951095,2.2906,2642.3,2641.7,2.64975]
[1723384951315,0.95906,2642.2,2641.7,2.64975]
[1723384951482,3.60843,2642.2,2641.7,2.6498]
[1723384951681,3.60843,2642.2,2641.6,2.64987]
[1723384951890,6.25781,2642.2,2641.6,2.64987]
[1723384952087,0.854841,2642.1,2641.6,2.64987]
[1723384952517,3.19957,2642.0,2641.2,2.65021]
[1723384952688,2.64971,2641.8,2641.3,2.6502]
[1723384954302,2.64971,2641.8,2641.2,2.6503]
[1723384954303,5.29951,2641.8,2641.2,2.6503]
[1723384954498,2.64981,2641.7,2641.2,2.6503]
[1723384954699,0.7910077,2641.7,2641.2,2.6503]
[1723384954928,3.4408177,2641.7,2641.2,2.6503]
[1723384955149,3.4408177,2641.7,2641.1,2.6504]
[1723384955307,2.6499,2641.6,2641.1,2.6504]
[1723384955497,3.25896177,2641.6,2641.1,2.6504]
[1723384955899,2.65011,2641.4,2640.9,0.28952135]
[1723384956199,5.30027,2641.4,2640.9,0.28952135]
[1723384956635,5.30027,2641.4,2640.9,2.94011135]
[1723384956636,2.65011,2641.4,2640.9,2.94011135]
[1723384956820,0.759087,2641.3,2640.9,2.94011135]
[1723384957024,2.2906,2641.2,2640.9,0.28952135]
[1723384957537,4.94091,2641.2,2640.9,0.28952135]
[1723384957900,4.94091,2641.2,2640.7,2.65079]
[1723384958532,4.94091,2641.2,2640.6,2.65086]
[1723384958831,2.65041,2641.1,2640.5,2.65095]
[1723384959037,3.409523,2641.1,2640.5,2.65095]
[1723384959556,2.65051,2641.0,2640.5,2.65095]
[1723384959836,2.65065,2640.9,2640.3,2.65112]
[1723384960102,3.2566533,2640.9,2640.3,2.65112]
[1723384960450,3.2566533,2640.9,2640.3,5.30227]
[1723384960649,3.2566533,2640.9,2640.5,2.65093]
[1723384960650,0.6060033,2640.9,2640.5,2.65093]
[1723384960964,8.059113,2641.1,2640.5,2.65093]
[1723384960965,10.709583,2641.1,2640.5,2.65093]
[1723384961176,0.55,2641.0,2640.3,2.65111]
[1723384961374,3.7765683,2640.9,2640.3,2.65111]
[1723384961686,2.2906,2640.8,2640.1,2.65137]
[1723384961884,4.94136,2640.8,2640.2,2.65125]
[1723384962089,5.60307683,2640.8,2640.2,2.65125]
[1723384963359,5.60307683,2640.8,2640.1,2.65137]
[1723384963360,2.95231683,2640.8,2640.5,2.65093]
[1723384964826,19.49,2641.7,2641.3,2.6502]
[1723384964974,2.2906,2641.8,2640.9,0.07572189]
[1723384965177,2.2906,2641.8,2641.4,2.65002]
[1723384965380,2.20606,2641.7,2641.4,2.65002]
[1723384965835,7.3,2642.0,2641.6,2.64988]
[1723384966122,7.3,2642.0,2641.6,2.64981]
[1723384966923,7.3,2642.0,2641.0,5.30089]
[1723384967075,2.64986,2641.7,2641.0,2.65044]
[1723384967279,2.64986,2641.7,2640.8,2.65064]
[1723384967503,2.65007,2641.5,2640.8,5.30128]
[1723384967701,0.265007,2641.4,2640.9,2.65059]
[1723384967907,0.265007,2641.4,2640.8,2.65064]
[1723384967908,2.915117,2641.4,2640.8,5.30129]
[1723384968310,2.915117,2641.4,2640.9,2.6506]
[1723384968680,0.265007,2641.4,2640.9,2.6506]
[1723384969014,5.08977,2641.3,2640.6,5.30168]
[1723384969235,0.5354777,2641.2,2640.7,2.6508]
[1723384969405,0.55,2641.6,2641.0,2.65049]
[1723384969606,2.4395,2641.6,2641.4,2.6501]
[1723384969813,2.4395,2641.9,2641.5,2.65]
[1723384970116,2.4395,2641.9,2641.4,2.6501]
[1723384970499,2.4395,2641.9,2641.4,2.65003]
[1723384970694,2.4395,2641.9,2641.6,2.6499]
[1723384971627,2.4395,2641.9,2641.7,2.64973]
[1723384971784,7.3,2642.1,2641.8,2.6497]
[1723384971979,7.3,2642.1,2641.7,2.64973]
[1723384972180,7.3,2642.1,2641.8,2.64968]
[1723384972424,8.27395,2642.1,2641.8,2.64968]
[1723384972727,7.3,2642.1,2641.8,2.64963]
[1723384973019,7.3,2642.1,2641.9,2.64953]
[1723384974602,7.3,2642.1,2641.7,5.2995]
[1723384974998,7.3,2642.1,2641.8,2.64968]
[1723384975319,7.3,2642.1,2641.7,5.29945]
[1723384975627,7.3,2642.1,2641.8,2.64969]
[1723384976827,7.3,2642.1,2641.9,2.64958]
[1723384977120,7.3,2642.1,2641.7,2.64971]
[1723384977304,7.3,2642.1,2641.8,2.6497]
[1723384977507,2.4395,2642.6,2642.1,2.64939]
[1723384977705,23.06588766,2643.2,2642.7,2.6488]
[1723384977706,30.10238766,2643.2,2642.7,2.6488]
[1723384977916,30.10238766,2643.2,2642.3,2.3451]
[1723384977917,2.4395,2643.2,2642.9,2.64851]
[1723384978087,2.68345,2643.2,2642.9,2.64855]
[1723384978729,2.68345,2643.2,2642.7,2.6487]
[1723384979039,7.3,2643.5,2643.1,2.6484]
[1723384979443,7.3,2643.5,2643.1,5.29674]
[1723384979742,7.3,2643.5,2643.1,2.64834]
[1723384980294,7.3,2643.5,2643.0,2.6485]
[1723384980535,0.73,2643.4,2643.0,2.6485]
[1723384981034,0.73,2643.4,2643.1,2.6484]
[1723384981432,0.73,2643.4,2643.2,2.64827]
[1723384981740,17.27727,2643.8,2643.7,2.6478]
[1723384981741,7.3,2643.8,2643.7,2.6478]
[1723384981942,2.4395,2644.1,2643.7,2.6478]
[1723384982660,5.08697,2644.1,2643.0,2.6485]
[1723384982963,5.08697,2644.1,2643.6,2.64788]
[1723384982964,2.4395,2644.1,2643.6,2.64788]
[1723384983120,2.4395,2644.1,2643.6,2.64784]
[1723384983316,0.30322288,2644.0,2643.4,2.64804]
[1723384983634,5.95074288,2644.0,2643.4,2.64804]
[1723384983813,5.95080288,2644.0,2643.4,2.64804]
[1723384984017,5.95080288,2644.0,2643.0,2.64845]
[1723384984018,3.30322288,2644.0,2643.0,2.64845]
[1723384984247,2.64777,2643.8,2643.2,2.64825]
[1723384984456,0.57427229,2643.9,2643.4,2.64804]
[1723384984629,7.3,2644.0,2643.6,2.64789]
[1723384984829,2.83452343,2644.1,2643.6,5.29574]
[1723384985056,0.60746222,2644.0,2643.6,5.29574]
[1723384985287,2.83452343,2644.1,2643.8,2.64764]
[1723384985467,0.39502343,2644.1,2643.8,2.64764]
[1723384985761,0.39502343,2644.1,2643.6,2.64783]
[1723384985762,0.39502343,2644.1,2643.6,5.29567]
[1723384985966,0.39502343,2644.1,2643.6,2.64782]
[1723384986127,3.04243343,2644.1,2643.6,2.64782]
[1723384986327,1.75327265,2644.1,2643.6,2.64782]
[1723384986642,2.254,2644.0,2643.0,2.64846]
[1723384986844,2.254,2644.0,2643.5,2.64794]
[1723384987041,2.254,2644.0,2643.5,5.29589]
[1723384987237,2.254,2644.0,2643.5,2.64794]
[1723384987429,0.66547326,2643.9,2643.3,2.64814]
[1723384987628,0.66547326,2643.9,2643.5,2.64799]
[1723384987828,2.254,2644.0,2643.3,5.29628]
[1723384988064,4.90155,2644.0,2643.4,2.6481]
[1723384988673,2.254,2644.0,2643.5,2.64793]
[1723384989126,2.254,2644.0,2643.6,2.64789]
[1723384989526,0.39502343,2644.1,2643.9,2.64759]
[1723384989760,9.554,2644.3,2643.9,5.29513]
[1723384990197,9.554,2644.3,2643.9,2.64754]
[1723384990397,4.90086,2644.7,2644.0,2.6475]
[1723384990564,7.167036,2644.6,2644.0,2.6475]
[1723384990973,4.520086,2644.6,2644.0,2.6475]
[1723384991174,4.520086,2644.6,2643.9,2.64753]
[1723384991175,9.813966,2644.6,2643.9,2.64753]
[1723384991372,2.254,2644.7,2644.0,2.3933]
[1723384991599,2.254,2644.7,2644.3,2.64715]
[1723384992097,7.3,2644.8,2644.3,2.64715]
[1723384992261,7.3,2644.8,2644.3,2.64714]
[1723384992465,10.06297827,2644.8,2644.4,2.64709]
[1723384992775,7.3,2644.8,2644.4,2.64709]
[1723384993159,7.3,2644.8,2644.3,2.64714]
[1723384993357,2.64686,2644.7,2644.0,5.11637097]
[1723384993866,2.64692,2644.6,2644.1,2.64732]
[1723384994099,2.64707,2644.5,2643.9,2.64753]
[1723384994302,2.64707,2644.5,2643.7,2.64773]
[1723384994303,2.64726,2644.3,2643.7,2.64773]
[1723384994801,4.90106,2644.5,2643.8,2.64765]
[1723384994990,5.5171038,2644.5,2643.8,2.64765]
[1723384995192,2.64716,2644.4,2643.8,2.64765]
[1723384995395,2.64723,2644.3,2643.7,2.64772]
[1723384995706,2.6472,2644.3,2643.7,2.64772]
[1723384995902,2.64716,2644.4,2643.8,2.6477]
[1723384996073,2.64716,2644.4,2643.8,2.64765]
[1723384996269,2.8700438,2644.5,2643.9,2.64753]
[1723384996904,2.254,2644.5,2644.1,2.64733]
[1723384997093,9.554,2644.8,2644.1,2.3933]
[1723384997307,2.64664,2644.9,2644.2,2.72286338]
[1723384997474,12.20046,2645.1,2644.4,2.64705]
[1723384997901,2.64655,2645.0,2644.4,2.64705]
[1723384998928,2.64675,2644.8,2644.2,3.15884634]
[1723384999245,2.64683,2644.7,2644.1,5.1163315]
[1723384999443,2.64683,2644.7,2644.1,2.4689315]
[1723384999609,2.64672,2644.8,2644.3,2.64719]
[1723385000636,1.220046,2645.0,2644.1,2.3933]
[1723385000936,3.866636,2645.0,2644.2,2.72286718]
[1723385001141,3.866636,2645.0,2644.4,2.64709]
[1723385001302,9.554,2645.1,2644.2,5.80609672]
[1723385001303,2.64667,2644.9,2644.2,5.80609672]
[1723385001499,2.64671,2644.8,2644.2,5.29448]
[1723385001710,2.6468,2644.7,2644.1,2.3933]
[1723385001897,2.64691,2644.6,2644.0,2.64743]
[1723385002100,9.554,2645.1,2644.0,2.64743]
[1723385002101,2.64708,2644.5,2644.0,0.264743]
[1723385002333,2.64686,2644.7,2644.0,2.64748]
[1723385002534,2.64666,2644.9,2644.3,2.64715]
[1723385003057,5.29333,2644.9,2644.3,2.64715]
[1723385003198,2.64682,2644.7,2644.2,2.64723]
[1723385003742,2.64682,2644.7,2644.0,2.64744]
[1723385005099,2.647,2644.5,2644.0,2.64744]
[1723385005550,2.64682,2644.7,2644.0,5.29489]
[1723385005728,2.64701,2644.5,2643.8,2.3933]
[1723385005909,2.64701,2644.5,2643.9,2.64759]
[1723385006413,3.0599953,2644.7,2643.9,2.64755]
[1723385006765,5.2937,2644.7,2644.1,2.64732]
[1723385007619,2.64691,2644.6,2644.1,2.64732]
[1723385008541,2.64684,2644.7,2643.9,2.64753]
[1723385008542,2.64702,2644.5,2643.9,2.64753]
[1723385008746,2.64702,2644.5,2643.7,2.64773]
[1723385008747,2.64721,2644.3,2643.7,2.64773]
[1723385008954,2.64715,2644.4,2643.5,2.3236]
[1723385009105,2.64715,2644.4,2643.8,2.64765]
[1723385009306,5.29432,2644.4,2643.8,2.64765]
[1723385009536,2.6472,2644.3,2643.8,2.64765]
[1723385010049,2.3331,2644.5,2643.9,2.64759]
[1723385010246,7.3,2644.6,2644.1,2.64735]
[1723385010562,7.3,2644.6,2644.1,2.64733]
[1723385010921,7.3,2644.6,2644.2,2.6473]
[1723385011533,7.3,2644.6,2644.1,2.6474]
[1723385012049,7.3,2644.6,2644.1,3.14907968]
[1723385012237,7.3,2644.6,2644.3,2.64713]
[1723385012439,7.3,2644.6,2644.3,5.29428]
[1723385012625,7.3,2644.6,2644.3,5.29427]
[1723385012826,2.3331,2645.0,2644.4,4.9707]
[1723385013025,7.3,2645.1,2644.4,5.55095481]
[1723385013026,9.94645,2645.1,2644.4,5.55095481]
[1723385013224,7.3,2645.1,2644.6,2.64685]
[1723385013423,2.64631,2645.2,2644.6,2.64685]
[1723385013856,2.64631,2645.2,2644.6,2.72246932]
[1723385014153,2.64631,2645.2,2644.6,2.64685]
[1723385015365,2.64631,2645.2,2644.6,3.46662426]
[1723385015674,29.71615,2645.4,2644.6,3.46662426]
[1723385015675,12.59231,2645.4,2644.7,2.72239746]
[1723385015962,12.59231,2645.4,2644.8,2.72228175]
[1723385015963,9.94615,2645.4,2644.8,2.72228175]
[1723385016262,1.30835504,2645.3,2644.5,2.64694]
[1723385016464,3.64157135,2645.2,2644.4,2.64705]
[1723385016626,2.64656,2645.0,2644.4,2.64705]
[1723385017262,2.64656,2645.0,2644.4,2.64707]
[1723385017563,2.64656,2645.0,2644.3,2.64714]
[1723385017564,2.64671,2644.8,2644.3,2.64714]
[1723385019036,2.64661,2644.9,2644.3,2.64714]
[1723385019237,2.64661,2644.9,2644.3,5.29428]
[1723385019441,2.64636,2645.2,2644.5,2.64691]
[1723385019745,2.64677,2644.8,2644.3,0.57959597]
[1723385019939,2.64677,2644.8,2644.2,4.97088]
[1723385020566,2.64656,2645.0,2644.3,2.64719]
[1723385020767,2.6464,2645.1,2644.5,2.64694]
[1723385021470,2.6464,2645.1,2644.6,2.64689]
[1723385021671,7.52501926,2645.3,2644.7,2.3236]
[1723385021672,2.64627,2645.3,2644.7,2.3236]
[1723385022179,0.59239149,2645.5,2644.8,2.64664]
[1723385022359,5.3331,2645.6,2644.7,2.3236]
[1723385022360,2.6463,2645.2,2644.7,2.3236]
[1723385022558,2.64636,2645.2,2644.6,2.64683]
[1723385022757,2.64636,2645.2,2644.6,5.29367]
[1723385023156,2.64621,2645.3,2644.7,0.07561526]
[1723385023362,5.29247,2645.3,2644.6,3.408557]
[1723385023556,2.6463,2645.2,2644.6,3.408557]
[1723385023759,2.64621,2645.3,2644.7,2.64675]
[1723385024296,2.64621,2645.3,2644.6,3.408557]
[1723385024498,2.64645,2645.1,2644.4,4.9706]
[1723385024900,2.64655,2645.0,2644.4,7.61765]
[1723385025099,2.64626,2645.3,2644.7,2.64679]
[1723385025299,3.03162228,2645.3,2644.6,2.6468]
[1723385025473,2.64646,2645.1,2644.6,2.6468]
[1723385025680,3.03161228,2645.3,2644.8,2.64669]
[1723385026004,3.03161228,2645.3,2644.6,3.408545]
[1723385026158,3.03161228,2645.3,2644.7,2.64679]
[1723385026364,3.03161228,2645.3,2644.7,2.64675]
[1723385026873,2.64652,2645.0,2644.4,2.3236]
[1723385027079,2.6463,2645.2,2644.4,2.3236]
[1723385027277,0.38536228,2645.3,2644.7,2.64679]
[1723385027607,0.38536228,2645.3,2644.8,2.64664]
[1723385027824,3.03157228,2645.3,2644.8,2.64664]
[1723385028288,0.38536228,2645.3,2644.8,2.64664]
[1723385028621,3.03162228,2645.3,2644.7,2.64677]
[1723385028820,3.03162228,2645.3,2644.7,2.72238259]
[1723385028987,0.38536228,2645.3,2644.8,2.72230252]
[1723385029187,4.97925,2645.4,2644.8,2.72230252]
[1723385029540,4.97925,2645.4,2644.8,2.64669]
[1723385030201,2.64646,2645.1,2644.4,4.97065]
[1723385030508,2.6466,2644.9,2644.4,7.61769]
[1723385030819,2.6466,2644.9,2644.4,3.085369]
[1723385030820,2.64662,2644.9,2644.4,3.085369]
[1723385031128,2.3207,2645.5,2644.5,4.96709]
[1723385031305,7.3,2645.6,2644.5,4.96709]
[1723385031306,9.94595,2645.6,2645.1,2.6464]
[1723385031678,2.64555,2646.0,2645.5,2.64599]
[1723385032007,2.64555,2646.0,2645.5,0.0755902]
[1723385032209,4.96601,2646.2,2645.5,2.99373322]
[1723385032210,2.64542,2646.1,2645.5,2.99373322]
[1723385032512,4.96601,2646.2,2645.6,2.64589]
[1723385033023,4.96601,2646.2,2645.5,0.34775322]
[1723385033024,2.64549,2646.1,2645.5,0.34775322]
[1723385033326,2.64552,2646.0,2645.5,0.27216302]
[1723385033627,4.96601,2646.2,2645.6,2.64588]
[1723385034225,4.96601,2646.2,2645.5,2.59226302]
[1723385034525,4.96601,2646.2,2645.5,5.31384324]
[1723385034526,2.64547,2646.1,2645.5,5.31384324]
[1723385034879,2.64552,2646.0,2645.5,2.66785324]
[1723385035257,4.96604,2646.2,2645.6,3.17727532]
[1723385035497,2.64547,2646.1,2645.6,0.53138532]
[1723385035769,2.64547,2646.1,2645.6,3.17727532]
[1723385036633,5.29094,2646.1,2645.6,0.53138532]
[1723385036828,5.29095,2646.1,2645.6,0.53138532]
[1723385037027,5.29095,2646.1,2645.5,5.31385325]
[1723385037470,2.64566,2645.9,2645.5,0.07559023]
[1723385037662,2.64566,2645.9,2645.4,2.64604]
[1723385037852,2.64566,2645.9,2645.4,2.64607]
[1723385038055,2.64566,2645.9,2645.4,2.72166023]
[1723385038249,2.64547,2646.1,2645.4,0.57976625]
[1723385038457,2.64547,2646.1,2645.5,2.64599]
[1723385038654,5.29092,2646.1,2645.5,2.64599]
[1723385038862,2.3207,2646.2,2645.2,2.3201]
[1723385039075,2.64577,2645.8,2645.2,7.61264]
[1723385039276,2.64551,2646.0,2645.4,2.64601]
[1723385039451,2.64551,2646.0,2645.4,5.29205]
[1723385039785,2.64547,2646.1,2645.4,2.72160082]
[1723385040156,2.64547,2646.1,2645.4,2.64601]
[1723385040355,2.64547,2646.1,2645.5,0.264601]
[1723385040576,2.64547,2646.1,2645.6,2.64588]
[1723385041049,2.64546,2646.1,2645.6,2.64588]
[1723385041693,2.64546,2646.1,2645.6,4.96598]
[1723385042717,2.64546,2646.1,2645.2,1.06882376]
[1723385042718,2.64565,2645.9,2645.3,4.96627]
[1723385042885,2.6455,2646.0,2645.4,2.64604]
[1723385043093,2.6455,2646.0,2645.2,3.71507376]
[1723385043094,2.64575,2645.8,2645.2,3.71507376]
[1723385043255,2.64575,2645.8,2645.3,2.72177707]
[1723385044363,2.64575,2645.8,2645.3,2.64618]
[1723385045085,2.64583,2645.7,2645.3,1.061261]
[1723385045296,7.61225,2645.8,2645.1,4.96644]
[1723385045587,2.3207,2646.2,2645.3,0.07559835]
[1723385045793,2.64555,2646.0,2645.4,2.64601]
[1723385046299,2.3411,2645.9,2645.1,2.64635]
[1723385046705,4.98677,2645.9,2645.1,2.64634]
[1723385046998,2.64595,2645.6,2645.0,5.29285]
[1723385047200,2.64595,2645.6,2645.1,0.529285]
[1723385047723,2.64595,2645.6,2645.0,2.64641]
[1723385048272,2.3411,2646.4,2645.9,2.64554]
[1723385048467,4.9862,2646.4,2645.9,0.07558026]
[1723385049210,4.9862,2646.4,2645.9,2.72115026]
[1723385049709,2.3411,2646.4,2645.9,2.64557]
[1723385050389,2.3411,2646.4,2645.9,2.72115027]
[1723385051704,4.98621,2646.4,2645.9,2.64557]
[1723385051883,3.834218,2646.4,2645.6,2.64588]
[1723385052202,2.64534,2646.2,2645.6,2.64588]
[1723385052401,2.64534,2646.2,2645.6,2.64583]
[1723385052904,6.479378,2646.4,2645.6,2.64583]
[1723385053085,6.479378,2646.4,2645.7,2.64578]
[1723385053086,2.64535,2646.2,2645.7,2.64578]
[1723385053704,2.64535,2646.2,2645.6,3.156683]
[1723385053867,2.64535,2646.2,2645.6,2.64589]
[1723385054331,2.64535,2646.2,2645.3,5.75383698]
[1723385054504,2.64535,2646.2,2645.4,2.4621]
[1723385054505,2.64552,2646.0,2645.4,2.4621]
[1723385054688,2.64552,2646.0,2645.5,2.64595]
[1723385054891,2.64552,2646.0,2645.4,6.0134937]
[1723385054892,7.63217,2646.0,2645.4,5.64605]
[1723385055120,4.98662,2646.0,2645.4,5.64605]
[1723385055317,2.3411,2646.0,2645.5,2.64598]
[1723385055526,2.64541,2646.1,2645.6,2.64585]
[1723385055826,4.98638,2646.3,2645.7,2.64574]
[1723385055995,2.6453,2646.2,2645.7,2.64574]
[1723385056589,2.6453,2646.2,2645.6,2.4621]
[1723385056828,2.6453,2646.2,2645.6,5.10797]
[1723385058227,2.6453,2646.2,2645.7,2.64576]
[1723385058427,2.6453,2646.2,2645.6,6.24387397]
[1723385058627,2.6453,2646.2,2645.6,6.31946362]
[1723385058800,4.98631,2646.3,2645.7,2.64579]
[1723385059007,4.98631,2646.3,2645.8,2.64569]
[1723385059314,2.6453,2646.2,2645.7,2.64579]
[1723385060007,12.28605,2646.6,2645.8,0.07558968]
[1723385060188,2.3411,2646.8,2646.2,2.64527]
[1723385060393,9.94462,2646.9,2646.4,2.64508]
[1723385060639,5.57777571,2647.0,2646.4,2.64508]
[1723385060640,4.98569,2647.0,2646.4,2.64508]
[1723385060838,9.94435,2647.2,2646.3,0.07556991]
[1723385061001,7.3,2647.2,2646.8,2.64464]
[1723385062097,2.64415,2647.4,2646.8,5.28928]
[1723385062402,2.64415,2647.4,2646.9,2.64458]
[1723385062403,4.626071,2647.4,2646.9,2.64458]
[1723385062745,1.981921,2647.4,2646.9,2.64458]
[1723385063708,1.981921,2647.4,2646.9,2.64454]
[1723385064113,4.626041,2647.4,2646.9,2.64454]
[1723385065616,4.626041,2647.4,2646.7,2.64474]
[1723385065617,7.270231,2647.4,2646.7,2.64474]
[1723385065815,2.64435,2647.2,2646.5,5.10704]
[1723385066017,1.86611633,2647.3,2646.9,2.64458]
[1723385066248,2.64417,2647.4,2646.9,2.64458]
[1723385066460,2.3212,2648.0,2647.3,2.64419]
[1723385066669,2.3212,2648.0,2647.1,2.702]
[1723385066670,4.96447,2648.3,2647.4,5.98400375]
[1723385066817,2.64347,2648.1,2647.4,2.71956475]
[1723385067013,4.96445,2648.3,2647.4,2.71956475]
[1723385067014,4.96445,2648.3,2647.5,2.64398]
[1723385067252,0.015,2648.6,2647.7,2.3432]
[1723385067253,2.65798,2648.6,2647.7,2.3432]
[1723385067417,2.65798,2648.6,2647.9,2.64357]
[1723385067616,2.65798,2648.6,2647.7,2.3432]
[1723385067617,2.64304,2648.5,2647.7,2.3432]
[1723385067819,2.64326,2648.3,2647.6,5.28764]
[1723385068052,3.140958,2648.5,2647.8,2.64369]
[1723385068236,0.3155958,2648.4,2647.9,2.64353]
[1723385068567,0.497918,2648.5,2648.0,2.64349]
[1723385068856,0.015,2648.6,2647.9,2.64359]
[1723385069061,2.64302,2648.5,2647.9,2.64359]
[1723385069242,0.015,2648.6,2647.9,2.64353]
[1723385069737,5.28607,2648.5,2647.7,2.64375]
[1723385069918,5.28607,2648.5,2647.7,2.64374]
[1723385069919,2.64301,2648.5,2647.7,2.64374]
[1723385070114,2.64314,2648.4,2647.7,2.64374]
[1723385070319,2.64314,2648.4,2647.5,4.98716]
[1723385070320,2.64302,2648.5,2647.6,2.64389]
[1723385070555,0.3420201,2648.4,2647.7,2.64374]
[1723385070961,2.64329,2648.3,2647.5,5.485876]
[1723385071122,2.64329,2648.3,2647.6,2.64389]